bitfinex/quotes_ETHUSD_20220218
["timestamp","ask_amount","ask_price","bid_price","bid_amount"]
[1645150279278,0.00330811,2908.3,2907.8,0.0033087]
[1645150279878,0.30330811,2908.3,2907.8,0.0033087]
[1645150280076,1.3611137,2908.3,2907.6,0.05958]
[1645150280280,2.3611137,2908.3,2907.6,0.05958]
[1645150280477,0.00330818,2908.2,2907.8,0.00330865]
[1645150281284,1.3611137,2908.3,2907.6,0.05958]
[1645150281285,2.2212037,2908.3,2907.6,0.05958]
[1645150281784,0.00330821,2908.1,2907.8,0.00330863]
[1645150282522,1.16009,2908.3,2907.6,0.05958]
[1645150282726,0.00330819,2908.1,2907.8,0.0033086]
[1645150283330,1.30478032,2909.9,2908.1,0.0005406]
[1645150283331,0.1719,2909.5,2908.1,0.0005406]
[1645150283730,0.1719,2909.5,2908.2,0.495]
[1645150283928,0.1719,2909.5,2908.3,0.00413307]
[1645150284129,0.1719,2909.5,2908.3,0.49913307]
[1645150284531,0.1719,2909.5,2909.2,1.18491808]
[1645150284731,15.0,2909.6,2909.2,1.18905115]
[1645150284930,15.0,2909.6,2909.3,0.00413307]
[1645150285435,0.00134448,2909.5,2909.3,0.00413307]
[1645150285630,0.00134448,2909.5,2909.4,0.495]
[1645150286080,15.0,2909.6,2909.4,3.995]
[1645150286282,15.0,2909.6,2909.5,3.5]
[1645150286484,5.04017925,2909.6,2909.5,0.49913307]
[1645150286684,0.1718,2911.0,2909.5,0.49913307]
[1645150286685,0.1718,2911.0,2909.6,6.0]
[1645150286887,0.1718,2911.6,2910.0,0.85921]
[1645150287084,0.1718,2911.6,2910.1,0.495]
[1645150287283,0.1718,2911.6,2910.1,0.49913307]
[1645150287484,0.1718,2911.6,2910.1,3.99913307]
[1645150287684,0.1718,2911.6,2910.1,0.49913307]
[1645150287884,0.1718,2911.6,2911.1,1.11257403]
[1645150288092,0.85909,2911.5,2910.5,0.85909]
[1645150288284,1.03069,2911.5,2910.5,0.85909]
[1645150289089,1.03069,2911.5,2910.3,1.14927927]
[1645150289090,1.05183347,2911.2,2910.3,1.14927927]
[1645150289288,1.71847,2911.3,2910.3,1.14927927]
[1645150289686,0.3,2911.2,2910.3,1.14927927]
[1645150290127,0.0013394,2910.9,2910.3,1.14927927]
[1645150290524,0.0013394,2910.9,2910.1,0.495]
[1645150290834,0.3013394,2910.9,2910.1,0.495]
[1645150291024,0.3,2910.9,2910.1,0.495]
[1645150291429,0.00330913,2910.6,2910.1,0.495]
[1645150291629,0.00330913,2910.6,2910.3,0.90761608]
[1645150292228,0.8593,2910.9,2910.3,0.90761608]
[1645150292430,0.00330916,2910.6,2910.3,0.90761608]
[1645150292829,0.00330916,2910.6,2909.9,0.03206033]
[1645150293433,0.85936,2910.6,2909.9,0.03206033]
[1645150293673,0.0033093,2910.4,2909.9,0.03206033]
[1645150293873,0.0033093,2910.4,2909.9,0.02792726]
[1645150294070,0.0033093,2910.4,2910.1,1.06230166]
[1645150294571,0.3,2910.5,2910.1,1.06230166]
[1645150294871,1.07976977,2911.2,2910.5,0.38832092]
[1645150295073,1.0,2911.3,2910.5,0.38832092]
[1645150295270,0.3,2911.3,2910.5,0.38832092]
[1645150295472,0.50227915,2911.2,2910.5,0.38832092]
[1645150295672,0.3,2911.2,2910.5,0.38832092]
[1645150295873,0.1716,2911.3,2910.5,0.38832092]
[1645150296078,2.01839,2911.4,2910.5,0.38832092]
[1645150296278,0.85914,2911.3,2910.7,0.88195589]
[1645150296582,0.3,2911.2,2910.7,0.88195589]
[1645150297625,0.85914,2911.6,2910.7,0.88195589]
[1645150298027,0.3,2911.5,2910.7,0.88195589]
[1645150298228,4.25236612,2911.5,2910.7,0.88195589]
[1645150298426,1.51548612,2911.4,2910.7,0.88195589]
[1645150298631,0.00133839,2911.3,2910.7,0.88195589]
[1645150298826,0.85928,2911.2,2910.7,0.88195589]
[1645150299228,1.15928,2911.2,2910.7,0.88195589]
[1645150299828,0.86251882,2911.1,2910.7,0.88195589]
[1645150300230,1.72176882,2911.1,2910.7,0.88195589]
[1645150300631,1.71846,2911.1,2910.7,0.88195589]
[1645150301072,0.00330886,2911.0,2910.7,0.88195589]
[1645150301278,0.00330886,2911.0,2910.5,0.38832092]
[1645150301279,0.3,2910.9,2910.5,0.38832092]
[1645150302076,0.00330899,2910.8,2910.5,0.38832092]
[1645150302674,0.00330899,2910.8,2910.5,0.80132092]
[1645150303076,2.01857,2910.9,2910.5,0.80132092]
[1645150303274,0.00330902,2910.8,2910.5,0.80132092]
[1645150303574,0.00330902,2910.8,2910.5,0.38832092]
[1645150304173,2.01857,2910.9,2910.5,0.38832092]
[1645150304573,0.00330902,2910.8,2910.5,0.38832092]
[1645150305424,1.15926,2910.9,2910.5,0.38832092]
[1645150305924,0.00330902,2910.8,2910.5,0.38832092]
[1645150306729,0.3,2911.1,2910.5,0.38832092]
[1645150306928,1.15915,2911.1,2910.8,1.15885734]
[1645150307130,0.3,2911.1,2910.8,1.15885734]
[1645150307330,0.3,2911.3,2910.8,1.15885734]
[1645150307729,1.1716,2911.5,2910.8,1.15885734]
[1645150307730,1.4716,2911.5,2910.8,1.15885734]
[1645150307930,0.3,2911.5,2910.8,1.15885734]
[1645150308130,0.00330875,2911.2,2910.8,1.15885734]
[1645150308329,0.00330875,2911.2,2910.8,1.57185734]
[1645150308587,0.00330875,2911.2,2910.9,0.85902]
[1645150308987,2.23345213,2911.8,2910.9,0.85902]
[1645150309192,0.85897,2911.8,2911.3,1.09575098]
[1645150309387,0.52247653,2911.7,2911.3,1.09575098]
[1645150309792,1.718,2911.9,2911.3,1.09575098]
[1645150309995,0.5224572,2911.8,2911.3,1.09575098]
[1645150310191,0.3,2911.9,2911.3,1.09575098]
[1645150310392,2.71793,2912.1,2911.3,4.59575098]
[1645150310598,0.00310428,2911.7,2911.4,0.413]
[1645150310797,0.00310428,2911.7,2911.5,4.3588]
[1645150310995,0.00310428,2911.7,2911.6,3.913]
[1645150311393,0.52275456,2912.2,2911.6,3.913]
[1645150311394,0.52275456,2912.2,2911.9,0.88011617]
[1645150312094,2.5764,2912.6,2911.9,0.88011617]
[1645150312321,1.38168845,2912.5,2911.9,0.88011617]
[1645150312519,0.52288845,2912.4,2911.9,0.88011617]
[1645150312722,0.52288845,2912.3,2911.9,0.88011617]
[1645150312921,0.52599232,2912.3,2911.6,0.413]
[1645150313821,0.52288845,2912.3,2911.6,0.413]
[1645150314225,0.52288845,2912.3,2911.2,4.7629]
[1645150314226,0.00310404,2912.1,2911.2,4.7629]
[1645150314431,0.52599249,2912.1,2911.2,3.115]
[1645150314625,0.82599249,2912.1,2911.2,3.115]
[1645150314822,0.52288845,2912.0,2911.1,1.9842]
[1645150315025,0.52288845,2912.0,2910.7,0.1716]
[1645150315225,1.17203824,2911.8,2910.9,1.09243526]
[1645150315425,0.85914,2911.6,2910.9,1.09243526]
[1645150315624,0.85916,2911.7,2910.9,1.09243526]
[1645150315825,0.82312341,2911.6,2910.9,1.09243526]
[1645150316081,0.3,2911.6,2910.9,1.09243526]
[1645150316488,0.00312286,2911.4,2910.9,1.95145526]
[1645150316688,0.00312286,2911.4,2911.0,0.413]
[1645150316889,0.00312286,2911.4,2911.0,3.913]
[1645150317093,0.00312286,2911.4,2911.0,0.413]
[1645150317289,0.00312286,2911.4,2911.0,3.913]
[1645150317589,0.52522396,2912.0,2911.0,4.7719]
[1645150317788,0.0031229,2911.3,2911.0,4.7719]
[1645150317988,0.52522396,2912.0,2911.3,0.00085632]
[1645150318190,0.52522396,2912.0,2911.4,0.85889]
[1645150318390,0.52522396,2912.0,2911.3,0.00085632]
[1645150318589,0.8589,2912.3,2911.7,0.83713677]
[1645150318989,0.52514275,2912.0,2911.7,0.83713677]
[1645150319189,0.85889,2911.9,2911.7,0.83713677]
[1645150320240,0.85884,2912.1,2911.7,0.83713677]
[1645150320437,1.0,2912.5,2911.7,1.25013677]
[1645150320639,0.52523364,2912.4,2911.8,0.85875]
[1645150321438,0.52523364,2912.4,2912.3,1.11987851]
[1645150322040,0.52523364,2912.6,2912.3,1.11987851]
[1645150322444,0.00330787,2912.5,2912.3,1.11987851]
[1645150322843,0.52854151,2912.5,2912.3,1.11987851]
[1645150323442,0.52523364,2912.5,2912.3,1.11987851]
[1645150323683,0.52833793,2912.5,2912.3,1.11987851]
[1645150324684,0.52523364,2912.5,2912.3,1.11987851]
[1645150324890,0.52833793,2912.5,2912.3,1.11987851]
[1645150325585,0.52833793,2912.5,2911.7,0.413]
[1645150325586,0.85881,2912.3,2911.7,0.413]
[1645150325789,0.52523364,2912.2,2911.7,0.413]
[1645150325991,0.52523364,2912.2,2911.3,2.01435632]
[1645150325992,0.82523364,2912.2,2911.3,2.01435632]
[1645150326189,0.82523364,2912.2,2911.3,0.20195632]
[1645150326190,0.85909,2912.0,2911.3,0.20195632]
[1645150326389,0.69683364,2911.9,2911.3,0.20195632]
[1645150326592,0.52523364,2911.8,2911.3,0.20195632]
[1645150326789,0.1716,2911.7,2911.3,0.20195632]
[1645150327090,20.28,2911.6,2911.3,0.00085632]
[1645150327338,6.0,2911.4,2910.5,0.38832092]
[1645150327547,1.35048917,2911.3,2910.5,0.38832092]
[1645150327740,3.4376,2911.1,2910.5,0.38832092]
[1645150327939,0.52523364,2911.0,2910.5,0.38832092]
[1645150328142,1.52523364,2911.0,2910.5,1.49993858]
[1645150328340,0.52523364,2910.9,2910.5,1.49993858]
[1645150328741,2.54397364,2910.9,2910.5,0.38832092]
[1645150328944,0.52523364,2910.8,2910.5,0.38832092]
[1645150329344,1.52523364,2910.8,2910.5,0.38832092]
[1645150329542,2.87824,2910.9,2910.5,0.38832092]
[1645150329543,0.52523364,2910.7,2910.5,0.38832092]
[1645150329743,1.38464364,2910.6,2910.5,0.38832092]
[1645150331180,0.52523364,2910.6,2910.5,0.38832092]
[1645150331385,3.54428364,2910.6,2910.5,0.38832092]
[1645150331580,2.54428364,2910.6,2910.5,0.38832092]
[1645150331779,3.54428364,2910.6,2910.5,0.38832092]
[1645150335339,1.82523364,2910.6,2910.5,0.38832092]
[1645150335740,1.99683364,2910.6,2910.5,0.38832092]
[1645150337949,1.99683364,2910.6,2909.0,1.36607744]
[1645150337950,0.29175495,2910.1,2909.0,1.36607744]
[1645150338146,0.29175495,2910.1,2910.0,0.01249975]
[1645150338147,20.57175495,2910.1,2910.0,0.01249975]
[1645150338344,3.24534916,2910.1,2910.0,0.01249975]
[1645150338577,3.899296,2910.1,2910.0,0.01249975]
[1645150338777,3.24534916,2910.1,2910.0,0.01249975]
[1645150338978,0.85982,2909.9,2909.5,0.00312544]
[1645150339181,6.0,2910.0,2909.2,1.05188953]
[1645150339182,2.57946,2909.6,2909.2,1.05188953]
[1645150339381,1.55327577,2909.5,2909.2,1.05188953]
[1645150339580,1.0,2909.5,2909.2,0.95188953]
[1645150340380,1.0,2909.5,2908.5,0.00413307]
[1645150340594,1.71972,2909.3,2908.5,0.00413307]
[1645150340784,1.71972,2909.3,2908.3,0.00413307]
[1645150340785,1.89152,2909.3,2908.3,0.00413307]
[1645150340986,0.5524519,2909.2,2908.1,0.00467367]
[1645150341182,0.5524519,2909.2,2908.2,0.87630651]
[1645150341585,1.0,2909.8,2908.3,0.88043958]
[1645150341788,1.0,2909.2,2908.3,0.00413307]
[1645150341984,1.71941,2909.5,2908.1,0.0005406]
[1645150342337,0.55197209,2909.4,2908.1,0.88015646]
[1645150342540,3.14906406,2909.5,2908.7,0.87941636]
[1645150342738,0.85971,2909.2,2908.7,0.87941636]
[1645150344242,0.85971,2909.2,2908.8,0.00331298]
[1645150345043,0.85971,2909.2,2908.7,0.87941636]
[1645150345444,0.85971,2909.2,2908.9,0.00331294]
[1645150346297,0.85971,2909.2,2908.7,0.87941636]
[1645150346495,0.85985,2909.0,2908.1,0.00467367]
[1645150346691,0.85985,2909.0,2908.9,0.00331291]
[1645150346892,1.15985,2909.0,2908.9,0.00331291]
[1645150347092,2.15985,2909.0,2908.9,0.00331291]
[1645150347491,28.86052,2908.9,2908.1,0.0005406]
[1645150347692,0.85930581,2908.5,2908.1,0.0005406]
[1645150347898,0.85930581,2908.5,2908.4,0.0132539]
[1645150348301,1.0,2908.6,2908.4,0.0132539]
[1645150348496,0.4719,2908.5,2908.4,0.0132539]
[1645150348695,0.4719,2908.5,2908.1,0.0005406]
[1645150348898,23.78,2908.4,2908.1,0.0005406]
[1645150349097,0.1719,2908.3,2908.1,0.0005406]
[1645150349297,1.1719,2908.3,2908.1,0.0005406]
[1645150349496,3.5,2908.2,2908.1,0.0005406]
[1645150349707,3.5,2908.2,2906.8,0.00413307]
[1645150349708,24.78,2908.0,2906.8,0.00413307]
[1645150349947,0.86049,2907.2,2906.8,0.00413307]
[1645150350150,0.1719,2907.7,2906.8,0.00413307]
[1645150350346,0.1719,2907.7,2906.2,0.02792726]
[1645150350347,1.1719,2907.7,2906.2,0.02792726]
[1645150350546,1.1719,2907.7,2906.2,0.20396033]
[1645150350547,1.6,2907.7,2906.2,0.20396033]
[1645150350852,0.8603,2907.5,2906.3,0.00413307]
[1645150351046,1.1603,2907.5,2906.8,1.01960474]
[1645150351247,0.3,2907.5,2906.9,0.00413307]
[1645150351447,0.3,2907.6,2906.9,0.00413307]
[1645150351647,0.7719,2907.7,2906.9,0.00413307]
[1645150351850,1.6,2907.7,2906.9,0.00413307]
[1645150352048,0.86034,2907.3,2906.9,0.00413307]
[1645150352649,0.86034,2907.3,2907.2,0.00331148]
[1645150352848,1.72067,2907.4,2907.2,0.00331148]
[1645150353047,2.72067,2907.4,2907.2,0.00331148]
[1645150353248,1.72067,2907.4,2907.2,0.00331148]
[1645150353453,3.7415,2907.4,2906.9,0.00413307]
[1645150353679,0.86041,2907.2,2906.9,0.00413307]
[1645150353883,0.86043,2907.3,2906.7,0.01324793]
[1645150354481,3.02067,2907.4,2906.7,0.01324793]
[1645150354482,1.0,2907.4,2906.7,0.01324793]
[1645150354684,0.1719,2907.7,2906.2,0.03206033]
[1645150354685,1.1719,2907.7,2906.9,1.17946808]
[1645150354881,0.86023,2907.6,2907.0,0.00413307]
[1645150355084,0.86023,2907.6,2906.9,0.00331169]
[1645150355283,0.3,2907.5,2906.9,0.00331169]
[1645150355483,6.68118,2907.5,2906.9,0.00331169]
[1645150355790,1.12495752,2907.0,2906.9,0.00331169]
[1645150355991,1.12495752,2907.0,2906.3,0.00413307]
[1645150355992,1.42495752,2907.0,2906.3,0.00413307]
[1645150356187,1.42495752,2907.0,2906.6,0.0132482]
[1645150356188,1.72495752,2907.0,2906.6,0.0132482]
[1645150356388,0.1719,2906.9,2906.6,0.0132482]
[1645150357188,0.1719,2906.9,2905.9,0.00413307]
[1645150357189,1.03244,2906.9,2905.9,0.00413307]
[1645150357427,0.3,2906.8,2906.6,0.00331186]
[1645150358130,0.76808845,2906.9,2906.6,0.00331186]
[1645150358330,0.76808845,2906.9,2905.9,0.00413307]
[1645150358331,0.86053,2906.8,2905.9,0.00413307]
[1645150358531,0.86058,2906.6,2905.8,0.0144409]
[1645150358732,0.86058,2906.6,2905.3,3.00462726]
[1645150358733,6.0,2906.5,2905.0,1.27363]
[1645150358931,6.0,2906.5,2904.7,2.3872]
[1645150358932,3.5,2906.4,2904.7,2.3872]
[1645150359136,20.4519,2906.3,2905.0,0.00409544]
[1645150359331,20.4519,2906.3,2904.3,0.214755]
[1645150359332,0.93870144,2905.5,2904.7,1.03397959]
[1645150359529,0.8609,2905.7,2904.4,0.00409544]
[1645150359731,1.0,2906.0,2904.3,20.322855]
[1645150359931,1.0,2906.3,2905.5,0.00321966]
[1645150360230,0.3,2906.2,2905.5,0.00321966]
[1645150360428,0.1719,2906.2,2905.5,0.95080004]
[1645150360629,0.1719,2906.2,2905.6,0.00409544]
[1645150360829,1.03259,2906.2,2905.6,0.00409544]
[1645150361096,1.03254,2906.2,2905.7,0.00321953]
[1645150361313,0.86064,2906.2,2905.7,0.00321953]
[1645150361693,1.2126,2907.1,2905.7,0.00321953]
[1645150361694,0.13819997,2906.8,2905.8,0.413]
[1645150361994,0.172,2907.3,2906.5,0.90012014]
[1645150362190,0.96289999,2907.4,2906.6,0.00409544]
[1645150362391,0.1719,2907.3,2906.6,0.00409544]
[1645150363393,1.72061,2907.6,2906.8,0.00321879]
[1645150363604,3.44143,2908.8,2906.8,0.00321879]
[1645150363605,2.25614226,2908.0,2906.8,0.00321879]
[1645150363792,1.5766,2908.0,2906.8,0.00321879]
[1645150363997,0.1719,2908.1,2906.8,0.00731423]
[1645150364193,0.677962,2908.1,2906.8,0.00731423]
[1645150364396,1.0105293,2907.7,2906.8,0.00409544]
[1645150364596,1.03234,2907.6,2907.3,0.00310799]
[1645150364833,0.86044,2907.6,2907.3,0.00310799]
[1645150365231,2.58131,2907.6,2907.3,0.00310799]
[1645150365430,1.16044,2907.5,2907.3,0.00310799]
[1645150365632,2.46044,2907.5,2906.6,0.00409544]
[1645150365831,1.72084,2907.3,2906.6,0.00409544]
[1645150366031,0.86042,2907.3,2906.6,0.00409544]
[1645150366238,1.6,2907.3,2906.6,0.00409544]
[1645150366536,0.91962013,2907.2,2906.6,0.00409544]
[1645150366835,0.91962013,2907.2,2906.3,0.00409544]
[1645150366836,0.86042,2907.1,2906.3,0.00409544]
[1645150367136,2.02086,2907.0,2906.3,0.00409544]
[1645150367335,2.02086,2907.0,2906.0,3.50409544]
[1645150367336,3.02086,2907.0,2906.0,3.50409544]
[1645150367536,1.1110142,2906.7,2906.1,0.00409544]
[1645150367740,3.02086,2907.0,2905.9,1.07622495]
[1645150367935,3.02106,2907.0,2906.0,0.00409544]
[1645150368139,0.6,2907.0,2906.0,0.00409544]
[1645150368339,0.3,2907.0,2906.3,0.00317916]
[1645150368585,0.4719,2907.2,2906.3,0.00317916]
[1645150368790,1.16864518,2907.1,2906.3,0.00317916]
[1645150368988,1.16035,2907.0,2906.3,0.00317916]
[1645150369191,1.16035,2907.0,2906.0,0.00409544]
[1645150369388,0.1719,2906.9,2906.6,0.00317895]
[1645150369586,2.46035,2907.0,2906.6,0.00317895]
[1645150369587,2.63225,2907.0,2906.6,0.00317895]
[1645150369789,2.46035,2907.0,2906.6,0.00317895]
[1645150369986,0.8605,2906.8,2906.6,0.00317895]
[1645150370186,1.1605,2906.8,2906.6,0.00317895]
[1645150370386,0.87441993,2906.6,2906.0,0.00409544]
[1645150370586,0.87441993,2906.6,2906.1,0.01271772]
[1645150370587,2.59539993,2906.6,2906.1,0.01271772]
[1645150370788,2.89539993,2906.6,2906.1,0.01271772]
[1645150371192,0.86049,2906.5,2906.1,0.01271772]
[1645150371591,1.72101,2906.5,2905.6,0.00409544]
[1645150371792,1.72101,2906.5,2906.2,0.00310865]
[1645150371793,0.86052,2906.5,2906.2,0.00310865]
[1645150372093,0.86047,2906.5,2906.2,0.00310865]
[1645150372735,0.86047,2906.5,2905.8,0.00409544]
[1645150373135,0.86047,2906.5,2906.2,0.00310862]
[1645150373942,0.86047,2906.5,2905.8,0.00409544]
[1645150374340,0.86047,2906.5,2906.2,0.00310862]
[1645150375141,0.86047,2906.5,2905.8,0.00409544]
[1645150375541,1.16047,2906.5,2906.2,0.00311336]
[1645150376388,0.86047,2906.5,2905.8,0.00409544]
[1645150376690,0.86047,2906.5,2906.2,0.00311336]
[1645150376887,0.9727835,2906.4,2906.2,0.00311336]
[1645150377690,1.8333635,2906.4,2905.5,0.00409544]
[1645150377888,1.8333635,2906.4,2906.2,0.00311339]
[1645150378092,1.16047,2906.5,2906.2,0.00311339]
[1645150378291,0.8605,2906.9,2906.2,0.00311339]
[1645150378491,1.1605,2906.9,2906.2,0.00311339]
[1645150378691,1.72087,2906.8,2906.2,0.00311339]
[1645150378890,1.72087,2906.8,2905.5,0.00409544]
[1645150379091,1.02965134,2906.5,2906.4,0.00311291]
[1645150379492,1.32965134,2906.5,2906.0,0.01156641]
[1645150379934,1.72109,2906.4,2906.0,0.01156641]
[1645150380136,1.72109,2906.4,2905.7,0.00409544]
[1645150381135,2.58164,2906.4,2905.7,0.00409544]
[1645150381334,0.86059,2906.2,2905.7,0.00409544]
[1645150383883,0.86059,2906.2,2905.8,0.00316582]
[1645150384788,0.86059,2906.2,2905.7,0.00409544]
[1645150385188,0.86059,2906.2,2905.9,0.00316578]
[1645150385389,1.72114,2906.2,2905.9,0.00316578]
[1645150385987,1.72114,2906.2,2905.9,0.00409544]
[1645150386388,1.72114,2906.2,2905.9,0.00316575]
[1645150386888,1.72114,2906.2,2905.9,0.00726119]
[1645150387331,1.72114,2906.2,2905.7,0.00409544]
[1645150387532,1.72114,2906.2,2905.9,0.00316575]
[1645150387735,0.3,2906.1,2905.9,0.00726119]
[1645150388137,0.1719,2906.5,2906.0,0.78581978]
[1645150388340,1.7209,2906.6,2906.1,4.28991522]
[1645150388540,0.52599077,2907.3,2906.2,0.78581978]
[1645150388541,0.1719,2907.1,2906.2,0.78581978]
[1645150388740,1.52599077,2907.3,2906.2,4.28991522]
[1645150388741,0.1719,2907.2,2906.2,4.28991522]
[1645150388941,0.86022,2907.6,2906.3,2.14610522]
[1645150389140,0.65394684,2908.2,2906.9,1.07624007]
[1645150389141,0.86009,2907.7,2906.9,1.07624007]
[1645150389345,1.72017,2907.9,2907.0,0.496]
[1645150389540,0.1719,2908.3,2907.1,0.496]
[1645150389745,2.00714681,2908.6,2907.2,0.496]
[1645150389746,0.65236482,2908.2,2907.2,0.496]
[1645150390039,2.58032,2908.4,2907.2,0.496]
[1645150390040,1.51242482,2908.1,2907.2,0.496]
[1645150390240,0.65236482,2908.0,2907.2,0.496]
[1645150390439,0.65236482,2908.0,2907.2,1.67662048]
[1645150390843,0.86004,2907.7,2907.2,1.67662048]
[1645150391292,0.1719,2908.1,2907.2,2.53667048]
[1645150391495,0.1719,2908.5,2907.3,0.78237848]
[1645150391691,0.13819997,2908.6,2907.4,0.496]
[1645150391692,0.6530801,2908.4,2907.4,0.496]
[1645150391894,0.6530801,2908.3,2907.4,1.35581]
[1645150392094,0.6530801,2908.2,2907.5,1.71966]
[1645150392299,0.6530801,2908.1,2907.6,0.496]
[1645150392492,0.87574583,2908.5,2907.7,0.496]
[1645150392493,0.6530801,2908.0,2907.7,0.496]
[1645150392691,0.6530801,2907.9,2907.5,0.496]
[1645150392894,0.6530801,2907.8,2907.5,0.496]
[1645150393092,0.6530801,2907.8,2907.1,0.496]
[1645150393093,1.5131901,2907.8,2907.1,0.496]
[1645150393298,0.6530801,2907.7,2907.1,0.496]
[1645150393695,0.6530801,2907.6,2907.1,0.496]
[1645150393897,0.6530801,2907.5,2907.1,0.496]
[1645150394099,0.6530801,2907.4,2907.1,0.496]
[1645150394400,2.02033,2907.7,2907.1,1.50302555]
[1645150394599,0.86018,2907.5,2907.1,1.00702555]
[1645150394837,0.65453315,2907.4,2907.1,1.00702555]
[1645150395234,3.74067,2907.7,2907.1,1.00702555]
[1645150395438,0.65475658,2907.6,2907.1,1.00702555]
[1645150395936,0.65475658,2907.5,2907.2,0.78496779]
[1645150396139,0.85270552,2908.1,2907.1,1.00702555]
[1645150396338,0.65475529,2908.0,2907.2,0.78491708]
[1645150396938,0.86014,2907.9,2907.2,0.78491708]
[1645150397141,0.65475529,2907.8,2907.2,0.78491708]
[1645150397344,0.65475529,2907.8,2907.1,1.00702555]
[1645150397540,0.65475529,2907.7,2907.1,1.00702555]
[1645150397744,0.65475529,2907.6,2907.1,1.00702555]
[1645150397942,1.19231781,2908.3,2907.1,1.00702555]
[1645150397943,0.65475529,2907.5,2907.1,1.00702555]
[1645150398141,1.7203,2907.8,2907.1,1.00702555]
[1645150398142,0.86015,2907.7,2907.1,1.00702555]
[1645150398341,0.65474427,2907.6,2907.1,1.00702555]
[1645150398588,0.65474427,2907.6,2907.2,1.19763656]
[1645150398788,0.3,2908.3,2907.6,0.72121781]
[1645150398987,0.82584684,2908.4,2907.6,0.72121781]
[1645150398988,0.65467947,2908.2,2907.6,0.72121781]
[1645150399188,0.65467947,2908.1,2907.6,0.72121781]
[1645150399389,0.65467947,2908.0,2907.6,1.58115781]
[1645150399590,0.65467947,2907.9,2907.6,1.58115781]
[1645150399790,0.3,2908.4,2907.8,1.1763371]
[1645150399991,0.6545247,2908.3,2907.8,1.1763371]
[1645150400187,0.6545247,2908.5,2907.8,1.1763371]
[1645150400389,0.9545247,2908.4,2907.8,1.1763371]
[1645150400589,0.6545247,2908.3,2907.8,1.1763371]
[1645150402732,1.5144947,2908.3,2907.8,1.1763371]
[1645150402934,0.6545247,2908.2,2907.8,1.1763371]
[1645150403152,0.6545247,2908.1,2907.6,0.72121781]
[1645150403338,0.6545247,2908.0,2907.6,0.72121781]
[1645150403538,0.3,2908.4,2907.6,0.72121781]
[1645150403539,0.6545247,2907.9,2907.6,0.72121781]
[1645150403737,0.6545247,2907.8,2907.6,0.72121781]
[1645150403937,0.3,2908.4,2907.6,0.72121781]
[1645150404138,0.66971844,2908.3,2907.6,0.72121781]
[1645150404340,0.86012,2907.8,2907.6,0.72121781]
[1645150404538,0.85897488,2907.8,2907.6,0.72121781]
[1645150406586,0.67013951,2907.7,2907.6,0.72121781]
[1645150408389,0.85897488,2907.8,2907.6,0.72121781]
[1645150411336,0.66998928,2907.7,2907.6,0.72121781]
[1645150411733,0.85897488,2907.8,2907.6,0.72121781]
[1645150412942,0.67005296,2907.7,2907.6,0.72121781]
[1645150416691,0.67005296,2908.1,2907.6,0.72121781]
[1645150416890,0.67005296,2908.0,2907.6,0.72121781]
[1645150417091,0.67005296,2907.9,2907.6,0.72121781]
[1645150417339,0.67023287,2907.8,2907.6,1.58119781]
[1645150417537,0.85995,2908.3,2907.6,1.58119781]
[1645150417735,0.67022723,2908.2,2908.1,1.02961407]
[1645150417936,0.67022723,2908.2,2907.6,0.72121781]
[1645150418543,0.67022723,2908.1,2907.7,0.85996]
[1645150418739,1.53020723,2908.1,2907.6,0.72121781]
[1645150419039,0.67022723,2908.0,2907.7,0.06091832]
[1645150419340,0.67022723,2907.9,2907.6,0.72121781]
[1645150419538,0.67022723,2907.8,2907.6,0.72121781]
[1645150419738,0.85998,2908.1,2907.6,1.58121781]
[1645150419939,1.51581569,2908.0,2907.6,1.58121781]
[1645150420141,0.65578569,2907.9,2907.6,1.58121781]
[1645150420340,0.65578569,2907.8,2907.7,0.84208181]
[1645150420747,2.02001,2908.4,2907.7,1.70204181]
[1645150420942,0.65578391,2908.3,2907.7,1.70204181]
[1645150423392,0.95578391,2908.4,2907.7,1.70204181]
[1645150423688,1.51574391,2908.3,2907.7,1.70204181]
[1645150423891,0.1751288,2908.7,2907.7,5.48237804]
[1645150423892,0.65578391,2908.2,2907.7,5.48237804]
[1645150424093,0.0032288,2908.7,2907.8,1.6354519]
[1645150424290,0.0032288,2908.7,2907.9,1.1886719]
[1645150424491,0.0032288,2908.7,2908.0,2.4950619]
[1645150424492,0.66613554,2908.7,2908.0,2.4950619]
[1645150424690,0.65394684,2909.1,2908.1,0.413]
[1645150424691,0.66290674,2908.6,2908.1,0.413]
[1645150424946,0.0032289,2908.7,2908.2,4.22390495]
[1645150425144,0.0032289,2908.7,2908.3,2.04819544]
[1645150425346,0.0032289,2908.7,2908.4,1.913]
[1645150425746,0.65394684,2909.4,2908.4,1.913]
[1645150425747,0.66280406,2908.9,2908.4,1.913]
[1645150425949,0.65394684,2909.4,2908.5,0.95145047]
[1645150425950,0.66280406,2908.8,2908.5,0.95145047]
[1645150426148,0.65394684,2909.2,2908.4,1.5]
[1645150426149,0.66590977,2908.7,2908.4,1.5]
[1645150426352,0.66280406,2908.6,2908.4,1.5]
[1645150426547,0.00310571,2908.7,2908.4,1.5]
[1645150426548,0.66280406,2908.5,2908.4,1.5]
[1645150426753,0.00310571,2908.7,2908.4,1.5]
[1645150427150,0.66280406,2908.8,2908.4,2.55925701]
[1645150427351,0.00310568,2908.7,2908.4,2.55925701]
[1645150427553,0.00310568,2908.7,2908.4,1.05925701]
[1645150427750,0.66590974,2908.7,2908.4,1.05925701]
[1645150427949,0.66280406,2908.6,2908.4,1.05925701]
[1645150428150,0.66280406,2908.5,2908.4,1.05925701]
[1645150428353,0.85977,2908.9,2908.4,1.91901701]
[1645150428588,1.3167509,2909.2,2908.4,1.05925701]
[1645150428589,0.00310571,2908.7,2908.4,1.05925701]
[1645150428787,0.66590977,2908.7,2908.4,1.05925701]
[1645150428988,0.66280406,2908.6,2908.4,1.05925701]
[1645150429185,0.66280406,2908.5,2908.4,1.05925701]
[1645150429389,0.66280406,2909.0,2908.4,1.05925701]
[1645150429586,0.00311396,2908.7,2908.4,1.05925701]
[1645150429787,0.66591802,2908.7,2908.4,1.05925701]
[1645150429987,0.66280406,2908.6,2908.4,1.05925701]
[1645150430191,0.66280406,2908.5,2908.4,1.05925701]
[1645150430391,0.00311396,2908.7,2908.4,1.05925701]
[1645150430592,0.85973,2909.2,2908.4,1.91895701]
[1645150430790,0.00311394,2908.7,2908.6,0.85971]
[1645150431591,0.66591715,2908.7,2908.6,0.85971]